[Event "Budapest GM ONE WEEK Feb 2024"]
[Site "Budapest"]
[Date "2024.02.26"]
[Round "1.5"]
[White "Vetoshko, Volodymyr"]
[Black "Paschall, William"]
[Result "1-0"]
[ECO "A40"]
[WhiteElo "2505"]
[BlackElo "2331"]
[Annotator "TA"]
[PlyCount "123"]
[EventDate "2024.02.25"]
[EventType "tourn"]
[EventCountry "HUN"]
[SourceTitle "playchess.com"]
[Source "ChessBase"]
[SourceQuality "1"]
[TimeControl "5400+30"]

{[%evp 33,123,0,0,0,22,21,32,28,106,113,101,73,346,331,335,327,372,360,324,260,254,247,250,235,306,301,282,289,320,327,335,342,327,268,293,0,326,293,341,300,292,293,328,295,325,225,561,545,541,125,123,123,123,123,174,95,104,66,139,131,139,144,139,91,107,44,49,42,316,316,325,357,362,300,302,318,317,306,323,320,325,313,322,322,266,322,265,201,12577,7106,29987,-1699]} 1. d4 {[%emt 0:00:09]} Nf6 {[%emt 0:00:26]} 2. c4 {[%emt 0:00:09]} e6 {[%emt 0:00:38]} 3. g3 {[%emt 0:00:10]} Bb4+ {[%emt 0:00:44]} 4. Bd2 {[%emt 0:00:47]} c5 {[%emt 0:01:07]} 5. Bxb4 {[%emt 0:02:04]} cxb4 {[%emt 0:00:15]} 6. Bg2 {[%emt 0:00:01]} O-O {[%emt 0:01:26]} 7. Nf3 {[%emt 0:04:07]} d6 {[%emt 0:02:16]} 8. O-O {[%emt 0:00:26]} Nc6 {[%emt 0:02:00]} 9. a3 {[%emt 0:01:17]} bxa3 {[%emt 0:01:20]} 10. Rxa3 {[%emt 0:00:25]} e5 {[%emt 0:02:28]} 11. d5 {[%emt 0:05:06]} Nb4 {[%emt 0:01:13]} 12. Nc3 {[%emt 0:06:59]} Re8 {[%emt 0:07:28] E11: Bogo-Indian.} 13. Ne1 {[%emt 0:12:22]} a5 {[%emt 0:03:59]} 14. Nd3 {[%emt 0:06:57]} Bd7 $146 {[%emt 0:03:12]} ({Predecessor:} 14... Nxd3 15. Qxd3 Nd7 16. Qc2 Nc5 17. b4 Na6 18. bxa5 Nc5 19. Rfa1 Bd7 20. Qb2 Ra6 {½-½ Dedijer,S (2064)-Franciskovic,B (2056) Bosnjaci op 10th (Women) 2004 (7)}) 15. Qb3 {[%emt 0:07:45]} Nxd3 {[%emt 0:02:19]} 16. exd3 {[%emt 0:00:04]} Qc7 {[%emt 0:02:27]} 17. Ra2 {[%emt 0:13:50]} Reb8 {[%emt 0:07:55]} 18. Rfa1 {[%emt 0:03:14]} Ra6 {[%emt 0:08:30]} 19. Bf1 {[%emt 0:05:16]} Qc5 {[%emt 0:04:10]} 20. Qa3 {[%emt 0:01:27]} Rc8 {[%emt 0:03:39]} (20... Qb6 $11 {remains equal.}) 21. Qxc5 $16 {[%emt 0:02:57]} Rxc5 {[%emt 0:00:05]} 22. f4 {[%emt 0:03:37]} Rc8 $2 {[%emt 0:13:30][%mdl 8192]} (22... exf4 $16 23. gxf4 Rb6) 23. fxe5 $18 {[%emt 0:02:34]} ({Don't take} 23. Rxa5 Rxa5 24. Rxa5 exf4 25. gxf4 Ne8) 23... dxe5 {[%emt 0:00:05]} 24. Rxa5 {[%emt 0:00:07]} Rb6 {[%emt 0:01:12]} 25. Ra8 {[%emt 0:02:31]} Re8 {[%emt 0:00:30]} 26. Ne4 {[%emt 0:07:43]} Kf8 {[%emt 0:08:41]} 27. Rxe8+ {[%emt 0:01:10]} Nxe8 {[%emt 0:00:40]} 28. b3 {[%emt 0:01:51]} Nc7 {[%emt 0:02:32]} 29. Nc5 {[%emt 0:04:16]} Ke7 {[%emt 0:02:17]} 30. Re1 {[%emt 0:01:25]} (30. Ra7 Bc8 31. Bg2 Ne8) 30... f6 {[%emt 0:00:30]} 31. d4 {[%emt 0:00:06]} Bc8 {[%emt 0:00:58]} 32. dxe5 {[%emt 0:00:57]} fxe5 {[%emt 0:00:04]} 33. Kf2 {[%emt 0:01:39]} Rf6+ {[%emt 0:00:39]} 34. Kg1 {[%emt 0:00:26]} Rb6 $1 {[%emt 0:00:59]} 35. Re3 {[%emt 0:01:43]} g6 {[%emt 0:04:31]} 36. Na4 {[%emt 0:01:24]} ({Resist} 36. Rxe5+ Kd6 37. Nd3 Na6 $18) 36... Rb4 {[%emt 0:00:30]} 37. Rxe5+ {[%emt 0:00:05]} Kd6 {[%emt 0:00:27]} 38. Re3 {[%emt 0:00:07]} Bf5 {[%emt 0:01:35]} 39. Bg2 {[%emt 0:01:47]} b6 $2 {[%emt 0:00:39]} (39... Na6 {is a better chance.} 40. Nc3 Nc5 41. Nb5+ Kd7) 40. Nc3 $18 {[%emt 0:00:38]} Bc2 {[%emt 0:01:38]} 41. Ne4+ $2 {[%emt 0:00:48]} (41. Re2 $18 {has better winning chances.} Bf5 42. Rb2) 41... Bxe4 $16 {[%emt 0:00:45]} 42. Bxe4 {[%emt 0:00:08]} b5 {[%emt 0:01:09]} 43. Rc3 {[%emt 0:00:44]} Na6 {[%emt 0:01:01]} (43... bxc4 $16 44. bxc4 (44. Rxc4 Rxb3 45. Rc6+ Kd7 $11) 44... Kc5) 44. Bc2 {[%emt 0:00:37]} (44. Bd3 $18) 44... bxc4 {[%emt 0:01:10]} 45. bxc4 {[%emt 0:00:16]} (45. Rxc4 {simplifies} Kxd5 46. Be4+ Ke5 47. Rxb4 Nxb4 48. Bf3) 45... Rb2 {[%emt 0:00:30]} (45... Nc5 $14) 46. Be4 {[%emt 0:00:43]} Nc5 {[%emt 0:00:34]} 47. Bf3 {[%emt 0:00:12]} Nb3 {[%emt 0:01:01]} 48. h4 {[%emt 0:00:46]} ({White should play} 48. Bg4) 48... Kc5 $16 {[%emt 0:01:17]} 49. Re3 {[%emt 0:00:35]} (49. Bg2 $16) 49... Nd4 $14 {[%emt 0:00:47]} 50. Bg2 {[%emt 0:00:19]} Kxc4 $2 {[%emt 0:01:03][%mdl 8192]} (50... Nf5 $1 $14 51. Re6 Kxc4) 51. d6 $18 {[%emt 0:00:26]} Rb8 {[%emt 0:05:10]} 52. d7 {[%emt 0:00:25]} Rd8 {[%emt 0:00:05]} 53. Re7 {[%emt 0:00:50]} Nf5 {[%emt 0:01:07]} 54. Rxh7 {[%emt 0:00:11]} Nxg3 {[%emt 0:00:21]} 55. Kf2 {[%emt 0:00:49]} Nh5 {[%emt 0:00:38]} 56. Rf7 {[%emt 0:00:25]} Kd4 {[%emt 0:00:35]} 57. Kf3 {[%emt 0:00:34]} Ke5 {[%emt 0:00:12]} 58. Bh3 {[%emt 0:00:09]} Kd6 {[%emt 0:01:19]} 59. Bg4 {[%emt 0:00:47]} Kc7 {[%emt 0:00:58]} 60. Ke4 {[%emt 0:00:32]} Rg8 $2 {[%emt 0:00:20]} (60... Kd6 61. Bh3 Rg8) 61. Ke5 $18 {[%emt 0:00:27]} Rg7 {[#]} 62. Ke4 $4 {[%mdl 8192]} (62. Rxg7 $1 {and all is fine.} Nxg7 63. Kf6 Kd8 64. Kxg7 Kc7 65. Kxg6 Kd8 66. h5 Ke7 67. h6) 1-0

[Event "Budapest GM ONE WEEK Feb 2024"]
[Site "Budapest"]
[Date "2024.02.27"]
[Round "2.1"]
[White "Grover, Sahaj"]
[Black "Paschall, William"]
[Result "1-0"]
[ECO "B00"]
[WhiteElo "2503"]
[BlackElo "2331"]
[Annotator "TA"]
[PlyCount "63"]
[EventDate "2024.02.25"]
[EventType "tourn"]
[EventCountry "HUN"]
[SourceTitle "playchess.com"]
[Source "ChessBase"]
[SourceQuality "1"]
[TimeControl "5400+30"]

{[%evp 9,63,40,55,42,74,40,48,39,46,27,31,20,21,22,17,13,37,45,72,76,79,79,100,76,68,73,90,28,60,68,81,70,60,4,8,16,15,0,0,0,0,0,0,0,4,0,53,74,509,509,522,516,485,493,470,461]} 1. e4 {[%emt 0:02:54]} d6 {[%emt 0:01:15]} 2. d4 {[%emt 0:00:07]} a6 {[%emt 0:00:18]} 3. Nf3 {[%emt 0:05:23]} Nf6 {[%emt 0:00:40]} 4. Bd3 {[%emt 0:00:47]} g6 {[%emt 0:03:23]} 5. O-O {[%emt 0:07:37]} Bg7 {[%emt 0:05:14]} 6. Re1 {[%emt 0:02:29]} Nc6 {[%emt 0:01:27]} 7. c3 {[%emt 0:01:36]} e5 {[%emt 0:02:25]} 8. Be3 {[%emt 0:02:39] White is slightly better.} O-O {[%emt 0:02:23]} 9. h3 {[%emt 0:01:04]} d5 {[%emt 0:11:19]} 10. Nxe5 {[%emt 0:12:04]} Nxe5 {[%emt 0:08:06]} 11. dxe5 {[%emt 0:00:11]} Nxe4 {[%emt 0:00:11]} 12. f4 {[%emt 0:08:59]} b6 {[%emt 0:12:29]} 13. Nd2 {[%emt 0:01:36]} Bb7 {[%emt 0:05:05]} 14. Nxe4 {[%emt 0:00:49]} dxe4 {[%emt 0:00:05]} 15. Bc4 {[%emt 0:01:36]} Qh4 {[%emt 0:02:57]} 16. Qg4 {[%emt 0:02:22]} (16. Qd7 {feels hotter.} Bc8 17. Qc6 Bf5 18. e6) 16... Qe7 {[%emt 0:05:59]} 17. a4 {[%emt 0:00:55]} Kh8 {[%emt 0:01:22]} 18. h4 {[%emt 0:01:19] White has more active pieces.} (18. Red1 $16 {Rd7 would now be deadly.} Rad8 19. Rxd8 Rxd8 20. Rd1 Rxd1+ 21. Qxd1) 18... f6 {[%emt 0:01:52]} 19. exf6 {[%emt 0:05:23]} Rxf6 {[%emt 0:06:09]} 20. Rad1 {[%emt 0:01:12][%cal Ba1d1,Bd1d2,Bd2d7,Bd7f7][%mdl 32]} Bc6 {[%emt 0:03:26] Inhibits Rd7.} 21. Qg5 {[%emt 0:04:00]} (21. Bd5 $14 Bd7 22. Qg5) 21... Qf8 $11 {[%emt 0:01:52]} 22. Bb3 {[%emt 0:02:44]} Rf5 {[%emt 0:00:58]} 23. Qg4 {[%emt 0:01:00]} Qe8 {[%emt 0:03:04] Against Be6} 24. Rd2 {[%emt 0:04:37]} Bxa4 {[%emt 0:01:29]} 25. Bxa4 {[%emt 0:00:05]} Qxa4 {[%emt 0:00:11]} 26. Red1 {[%emt 0:00:03]} Qe8 {[%emt 0:04:16] Prevents Rd8} 27. Rd7 {[%emt 0:02:44]} Rc8 {[%emt 0:03:17]} (27... h5 $11 28. Qh3 Rc8) 28. h5 $14 {[%emt 0:01:27]} Bf6 $2 {[%emt 0:03:36][%mdl 8192] [#] This costs Black the game.} (28... Rxh5 $2 {too greedy.} 29. Re7 Qxe7 30. Qxc8+ Bf8 31. g4 $18 (31. Qxa6 Rf5 $11) (31. Rd7 Rh1+ 32. Kxh1 Qh4+ 33. Kg1 Qe1+ 34. Kh2 Qh4+ 35. Kg1 Qe1+ 36. Kh2 Qh4+ 37. Kg1 $11)) (28... Kg8 $16) 29. hxg6 $1 $18 {[%emt 0:02:18] White is clearly winning.} Qxg6 {[%emt 0:00:30]} 30. Qxg6 {[%emt 0:00:06]} hxg6 {[%emt 0:00:05]} 31. g4 {[%emt 0:00:04]} Rb5 {[%emt 0:01:12] [#]} 32. Rf7 $1 {[%emt 0:00:05] Weighted Error Value: White=0.11 (very precise) /Black=0.28 (precise) .  Loses game:     	---       	Black=1      Mistake:       	White=2     	Black=1      Inaccurate:     	White=1     	Black=3      OK:         	White=7     	Black=8      Best:        	White=1     	Black=2      Strong:       	White=2     	---} 1-0

[Event "Budapest GM ONE WEEK Feb 2024"]
[Site "Budapest"]
[Date "2024.02.27"]
[Round "2.2"]
[White "Pasti, Aron"]
[Black "Vetoshko, Volodymyr"]
[Result "1-0"]
[ECO "C70"]
[WhiteElo "2389"]
[BlackElo "2505"]
[Annotator "TA"]
[PlyCount "59"]
[EventDate "2024.02.25"]
[EventType "tourn"]
[EventCountry "HUN"]
[SourceTitle "playchess.com"]
[Source "ChessBase"]
[SourceQuality "1"]
[TimeControl "5400+30"]

{[%evp 9,59,36,25,23,18,2,16,3,17,-10,-9,-8,0,10,28,45,35,22,7,0,0,0,27,0,0,0,0,0,83,81,145,129,206,219,215,213,206,213,200,87,135,58,337,354,363,333,286,202,549,509,889,885]} 1. e4 {[%emt 0:00:10]} e5 {[%emt 0:00:23]} 2. Nf3 {[%emt 0:00:05]} Nc6 {[%emt 0:00:12]} 3. Bb5 {[%emt 0:00:05][%cal Bf1b5,Bb5a4,Ba4b3,Bb3d5][%mdl 32]} a6 {[%emt 0:00:17]} 4. Ba4 {[%emt 0:00:05]} Nge7 {[%emt 0:00:24]} 5. O-O {[%emt 0:05:15]} Ng6 {[%emt 0:00:12]} 6. c3 {[%emt 0:00:04]} d5 {[%emt 0:00:29]} 7. exd5 {[%emt 0:05:39]} Qxd5 {[%emt 0:00:07]} 8. d4 {[%emt 0:09:44][%cal Oc3c4] Strongly threatening c4! The position is equal.} Bg4 {[%emt 0:04:22]} 9. Bb3 {[%emt 0:05:15]} Bxf3 {[%emt 0:13:36]} 10. Bxd5 {[%emt 0:00:31]} Bxd1 {[%emt 0:00:05]} 11. Rxd1 {[%emt 0:02:55]} exd4 {[%emt 0:22:20]} 12. Bxc6+ {[%emt 0:04:38]} bxc6 {[%emt 0:00:03]} 13. cxd4 {[%emt 0:01:06]} O-O-O {[%emt 0:00:53]} 14. Be3 {[%emt 0:00:18]} f5 {[%emt 0:05:10]} 15. f3 {[%emt 0:02:21]} Bb4 {[%emt 0:09:37]} 16. a3 {[%emt 0:03:37]} Rhe8 {[%emt 0:02:56]} 17. axb4 {[%emt 0:03:38]} Rxe3 {[%emt 0:00:07]} 18. Nc3 {[%emt 0:00:01][%cal Og1f2]} Kb7 {[%emt 0:12:58]} (18... Nf4 $1 $11 {keeps the balance.}) 19. Na4 {[%emt 0:07:36] aiming for Nc5+.} Nf4 {[%emt 0:01:56]} (19... Ra8 $142) 20. Nc5+ $16 {[%emt 0:00:05]} Kb6 {[%emt 0:00:36]} (20... Kb8 $16) 21. Rxa6+ $18 {[%emt 0:00:55]} Kb5 {[%emt 0:00:01][%cal Oe3e2]} 22. Ra5+ {[%emt 0:00:28]} Kb6 {[%emt 0:11:57]} 23. Na4+ {[%emt 0:08:26]} Kb7 {[%emt 0:00:01]} 24. b5 {[%emt 0:01:47]} (24. Rxf5 $18 {has better winning chances.} Nd5 25. Rf7) 24... g6 {[%emt 0:06:01]} (24... Rde8 $142) 25. Ra6 {[%emt 0:03:35]} (25. b4 $16) 25... Rb8 $2 {[%emt 0:04:18][%mdl 8192] Black cannot hold the game after this.} ({Black should try} 25... Re5 $1 $14 26. Rxc6 Ne2+ 27. Kf2 Rxb5) 26. Nc5+ {[%emt 0:03:23]} ({Much less strong is} 26. Rxc6 Rbe8 27. Nc5+ Kb8 $18) 26... Kc8 {[%emt 0:00:04]} 27. bxc6 {[%emt 0:00:05]} (27. Rxc6 Rxb5 28. Rf6 Kd8 $16) 27... Kd8 {[%emt 0:03:22]} 28. b3 {[%emt 0:04:19] [#] Black must now prevent d5.} Re2 $2 {[%emt 0:00:51]} (28... Ke7 {is more resistant.} 29. Ra5 Nd5) 29. Kf1 {[%emt 0:00:06]} Rxg2 {[%emt 0:01:09]} (29... Ke7 $142 30. g3 Kd6 31. gxf4 Rxh2) 30. Re1 {[%emt 0:00:36] Weighted Error Value: White=0.18 (very precise) /Black=0.60.  Loses game:     	---       	Black=1      Mistake:       	White=2     	Black=6      Inaccurate:     	White=2     	Black=1      OK:         	White=6     	Black=7      Best:        	White=7     	Black=3} 1-0

[Event "Budapest GM ONE WEEK Feb 2024"]
[Site "Budapest"]
[Date "2024.02.27"]
[Round "2.3"]
[White "Gaal, Zsoka"]
[Black "Pap, Misa"]
[Result "0-1"]
[ECO "A88"]
[WhiteElo "2341"]
[BlackElo "2422"]
[Annotator "RC"]
[PlyCount "108"]
[EventDate "2024.02.25"]
[EventType "tourn"]
[EventCountry "HUN"]
[SourceTitle "playchess.com"]
[Source "ChessBase"]
[SourceQuality "1"]
[TimeControl "5400+30"]

1. d4 {[%emt 0:00:09]} f5 {[%emt 0:08:39]} 2. Nf3 {[%emt 0:00:32]} Nf6 {[%emt 0:00:12]} 3. g3 {[%emt 0:01:27]} g6 {[%emt 0:00:55]} 4. Bg2 {[%emt 0:00:26]} Bg7 {[%emt 0:00:06]} 5. c4 {[%emt 0:00:26]} O-O {[%emt 0:00:20]} 6. O-O {[%emt 0:00:17]} d6 {[%emt 0:00:09]} 7. Nc3 {[%emt 0:00:54]} c6 {[%emt 0:01:04]} 8. Re1 {[%emt 0:02:29]} Ne4 {[%emt 0:05:49]} 9. Qc2 {[%emt 0:06:44]} Na6 {[%emt 0:00:04]} 10. Nxe4 {[%emt 0:08:55]} fxe4 {[%emt 0:00:05]} 11. Qxe4 {[%emt 0:01:52]} Nb4 {[%emt 0:02:25]} 12. Bg5 {[%emt 0:08:10]} Rf7 {[%emt 0:00:21]} 13. Rad1 {[%emt 0:02:28]} h6 {[%emt 0:26:25]} 14. Bxh6 {[%emt 0:08:14]} Bxh6 {[%emt 0:00:04]} 15. Qxg6+ {[%emt 0:00:10]} Bg7 {[%emt 0:00:05]} 16. Ng5 {[%emt 0:00:33]} Rf6 {[%emt 0:00:23]} 17. Qh7+ {[%emt 0:02:10]} Kf8 {[%emt 0:00:01]} 18. Qh5 {[%emt 0:03:20]} Bd7 {[%emt 0:03:07]} 19. Nh7+ {[%emt 0:06:37]} Kg8 {[%emt 0:00:07]} 20. Nxf6+ {[%emt 0:00:09]} exf6 {[%emt 0:00:56]} 21. e4 {[%emt 0:01:00]} Qc8 {[%emt 0:04:24]} 22. h3 {[%emt 0:06:30]} Be8 {[%emt 0:01:59]} 23. Qe2 {[%emt 0:03:07]} c5 {[%emt 0:05:22]} 24. d5 {[%emt 0:04:10]} Nxa2 {[%emt 0:01:32]} 25. f4 {[%emt 0:00:48]} Nb4 {[%emt 0:00:22]} 26. g4 {[%emt 0:01:57]} b5 {[%emt 0:00:18]} 27. b3 {[%emt 0:09:03]} bxc4 {[%emt 0:19:06]} 28. bxc4 {[%emt 0:00:11]} a5 {[%emt 0:00:11]} 29. h4 a4 {[%emt 0:00:41]} 30. g5 {[%emt 0:06:50]} fxg5 {[%emt 0:00:22]} 31. hxg5 {[%emt 0:00:06]} a3 {[%emt 0:04:20]} 32. e5 {[%emt 0:01:13]} Qf5 {[%emt 0:00:31]} 33. exd6 {[%emt 0:01:45]} Bd7 {[%emt 0:04:26]} 34. Qh5 {[%emt 0:06:10]} a2 {[%emt 0:01:09]} 35. Be4 {[%emt 0:00:27]} Qg4+ {[%emt 0:00:21]} 36. Qxg4 {[%emt 0:00:06]} Bxg4 {[%emt 0:00:05]} 37. Rc1 {[%emt 0:07:15]} Bb2 {[%emt 0:04:01]} 38. Ra1 {[%emt 0:00:45]} Bxa1 {[%emt 0:00:16]} 39. Rxa1 {[%emt 0:00:05]} Rf8 {[%emt 0:00:27]} 40. Kf2 {[%emt 0:02:20]} Rxf4+ {[%emt 0:00:57]} 41. Ke3 {[%emt 0:00:05]} Rf8 {[%emt 0:00:30]} 42. Rh1 {[%emt 0:00:27]} Ra8 {[%emt 0:01:02]} 43. Ra1 {[%emt 0:00:23]} Bd7 {[%emt 0:02:15]} 44. Kf4 {[%emt 0:00:21]} Kg7 {[%emt 0:00:38]} 45. Ke5 {[%emt 0:00:47]} Re8+ {[%emt 0:01:08]} 46. Kf4 {[%emt 0:00:05]} Rh8 {[%emt 0:00:07]} 47. Ke5 {[%emt 0:00:50]} Rh5 {[%emt 0:00:42]} 48. Rg1 {[%emt 0:00:35]} Rh2 {[%emt 0:00:42]} 49. Ra1 {[%emt 0:01:02]} Re2 {[%emt 0:01:24]} 50. Kf4 {[%emt 0:00:06]} Kg8 {[%emt 0:01:02]} 51. Bg6 {[%emt 0:00:54]} Rg2 {[%emt 0:00:41]} 52. Rh1 {[%emt 0:00:25]} Nc2 {[%emt 0:01:15]} 53. Bh7+ {[%emt 0:00:25]} Kg7 {[%emt 0:00:34]} 54. Be4 {[%emt 0:00:09]} Rg4+ {[%emt 0:00:10]} 0-1

[Event "Budapest GM ONE WEEK Feb 2024"]
[Site "Budapest"]
[Date "2024.02.27"]
[Round "2.4"]
[White "Paszewski, Mateusz"]
[Black "Bodi, Tibor"]
[Result "1-0"]
[ECO "C45"]
[WhiteElo "2286"]
[BlackElo "2294"]
[Annotator "TA"]
[PlyCount "77"]
[EventDate "2024.02.25"]
[EventType "tourn"]
[EventCountry "HUN"]
[SourceTitle "playchess.com"]
[Source "ChessBase"]
[SourceQuality "1"]
[TimeControl "5400+30"]

{[%evp 11,77,-4,17,4,14,14,16,19,66,75,75,69,66,43,47,62,64,58,104,100,110,90,144,147,149,153,176,164,127,133,131,140,137,133,226,202,287,284,262,237,313,68,43,40,114,110,126,65,352,348,405,406,396,400,387,391,592,604,743,738,800,798,780,730,962,937,947,914]} 1. e4 {[%emt 0:00:17]} Nc6 {[%emt 0:00:48]} 2. Nf3 {[%emt 0:00:09]} e5 {[%emt 0:01:44]} 3. d4 {[%emt 0:00:24]} exd4 {[%emt 0:00:19]} 4. Nxd4 {[%emt 0:00:04]} Bc5 {[%emt 0:01:00]} 5. Nb3 {[%emt 0:00:07]} Bb6 {[%emt 0:00:10]} 6. Nc3 {[%emt 0:00:24]} d6 {[%emt 0:01:20]} 7. Bf4 {[%emt 0:01:44]} Nge7 {[%emt 0:00:29]} 8. Qd2 {[%emt 0:10:04]} O-O {[%emt 0:01:14]} 9. O-O-O {[%emt 0:00:41] The position is equal.} a5 {[%emt 0:02:52]} (9... Qe8 $11) 10. Bb5 $14 {[%emt 0:11:16]} Be6 {[%emt 0:01:51]} 11. Rhe1 {[%emt 0:06:01]} Ng6 {[%emt 0:06:54]} 12. Be3 {[%emt 0:03:26]} Bxe3 {[%emt 0:00:08]} 13. Qxe3 {[%emt 0:06:41]} Qf6 {[%emt 0:10:32]} 14. g3 {[%emt 0:03:12]} Na7 {[%emt 0:08:31]} (14... Bg4 $14) 15. Be2 $16 {[%emt 0:09:30]} (15. Nxa5 $2 Nxb5 16. Nxb5 Rxa5 $19) 15... Bxb3 {[%emt 0:07:09]} 16. cxb3 {[%emt 0:02:55]} Ne7 {[%emt 0:00:51]} ({Better is} 16... c6) 17. f4 {[%emt 0:01:50]} Rfe8 {[%emt 0:00:38]} 18. h4 {[%emt 0:05:33][%cal Bh2h4,Bh4h5][%mdl 32]} Nac6 {[%emt 0:03:30][%cal Od6d5]} 19. h5 {[%emt 0:01:54]} d5 {[%emt 0:10:27]} 20. e5 {[%emt 0:07:15]} (20. exd5 Nxd5 21. Nxd5 Rxe3 22. Nxf6+ gxf6 $18) 20... Qe6 {[%emt 0:01:26] [#] Hoping for ...d4.} 21. Qf3 {[%emt 0:01:28]} a4 {[%emt 0:05:40]} 22. Nxa4 {[%emt 0:05:55]} (22. bxa4 d4 23. Nb5 Qxa2 $17) 22... Nb4 {[%emt 0:12:23]} (22... Nf5 $16) 23. Kb1 {[%emt 0:00:48]} d4 {[%emt 0:07:22]} (23... f6 $142 24. Qg4 Qxg4 25. Bxg4 f5) 24. Bc4 $18 {[%emt 0:03:03]} (24. Rxd4 Rxa4 25. Qe4 (25. bxa4 $2 Qxa2+ 26. Kc1 Qa1+ 27. Kd2 Qxb2+ 28. Ke3 Nc2+ 29. Kf2 Qxd4+ $19) 25... Nec6 $16 (25... Rxa2 $2 26. Rxb4 Rea8 27. Kc2 $18)) 24... Qf5+ {[%emt 0:04:58]} 25. Re4 {[%emt 0:04:04][%cal Og3g4] [#] And now g4! would win. Active counter play!} Nec6 {[%emt 0:02:02][%cal Rc6e5] ...Nxe5! would now be deadly.} 26. Bd3 $2 {[%emt 0:08:01]} (26. e6 $18 Rxe6 27. Bxe6 fxe6 28. a3) 26... Nxd3 $1 $14 {[%emt 0:04:18]} 27. Rxd3 {[%emt 0:00:01]} Qd7 {[%emt 0:02:13]} (27... f6 $14) 28. a3 {[%emt 0:01:55]} ({Not} 28. Nc5 Qd5 29. Na4 (29. Nxb7 $2 {loses.} Rab8 $19) 29... b5 $17) 28... Qd5 {[%emt 0:00:31]} 29. Re1 {[%emt 0:00:44]} (29. h6 $16) 29... Qb5 $2 {[%emt 0:01:16][%mdl 8192] This move loses the game for Black.} (29... Qxf3 $14 30. Rxf3 b6) 30. Rc1 $18 {[%emt 0:00:46]} Rxe5 {[%emt 0:00:53]} 31. Rxc6 {[%emt 0:00:58]} ({Less strong is} 31. fxe5 Nxe5 32. Rc5 Qxd3+ 33. Qxd3 Nxd3 34. Rxc7 b5 $16) 31... Re1+ {[%emt 0:00:38]} 32. Rc1 {[%emt 0:00:05]} Rxc1+ {[%emt 0:00:25]} 33. Kxc1 {[%emt 0:00:01]} Re8 {[%emt 0:00:02]} (33... Rd8 {was necessary.} 34. h6 Qd5 35. Qxd5 Rxd5) 34. Rxd4 {[%emt 0:01:06] White is clearly winning.} h6 {[%emt 0:02:03]} 35. Kb1 {[%emt 0:01:29]} c5 {[%emt 0:00:21][%cal Bc7c5,Bc5c4][%mdl 32]} 36. Re4 {[%emt 0:00:41]} Rd8 {[%emt 0:00:08]} 37. Qe2 {[%emt 0:00:36]} c4 {[%emt 0:00:40]} 38. Nc3 {[%emt 0:00:45]} Qf5 {[%emt 0:00:21]} 39. g4 {[%emt 0:00:21] Weighted Error Value: White=0.20 (precise) /Black=0.42.  Loses game:     	---       	Black=1      Missed win:     	White=1     	---        Mistake:       	White=1     	Black=7      Inaccurate:     	---       	Black=1      OK:         	White=14    	Black=10     Best:        	White=2     	Black=1      Strong:       	---       	Black=1} 1-0

[Event "Budapest GM ONE WEEK Feb 2024"]
[Site "Budapest"]
[Date "2024.02.27"]
[Round "2.5"]
[White "Tomic, Aleksandar"]
[Black "Pribelszky, Bence"]
[Result "1/2-1/2"]
[ECO "A05"]
[WhiteElo "2398"]
[BlackElo "2371"]
[Annotator "TA"]
[PlyCount "61"]
[EventDate "2024.02.25"]
[EventType "tourn"]
[EventCountry "HUN"]
[SourceTitle "playchess.com"]
[Source "ChessBase"]
[SourceQuality "1"]
[TimeControl "5400+30"]

{[%evp 15,61,8,27,17,36,17,17,25,22,22,30,34,29,31,29,26,27,23,72,56,70,81,75,23,21,13,24,24,19,23,27,22,23,27,26,17,18,20,18,12,16,22,21,14,17,19,15,0]} 1. Nf3 {[%emt 0:07:56]} Nf6 {[%emt 0:00:33]} 2. g3 {[%emt 0:00:20]} b6 {[%emt 0:00:19]} 3. Bg2 {[%emt 0:00:24]} Bb7 {[%emt 0:00:06]} 4. c4 {[%emt 0:00:13]} g6 {[%emt 0:04:00]} 5. O-O {[%emt 0:03:25]} Bg7 {[%emt 0:00:07]} 6. Nc3 {[%emt 0:00:41]} O-O {[%emt 0:00:23]} 7. d4 {[%emt 0:07:10]} Ne4 {[%emt 0:00:10]} 8. Nxe4 {[%emt 0:08:30]} Bxe4 {[%emt 0:00:40]} 9. Bg5 {[%emt 0:00:41]} c5 {[%emt 0:04:31]} 10. Qd2 {[%emt 0:00:59]} cxd4 {[%emt 0:29:40]} 11. Nxd4 {[%emt 0:06:44][%cal Bf3d4,Bd4f5,Bf5e7,Be7d5][%mdl 32]} Bxg2 {[%emt 0:00:05]} 12. Kxg2 {[%emt 0:00:10]} d5 {[%emt 0:01:12]} 13. Rad1 {[%emt 0:02:39]} dxc4 {[%emt 0:04:54] [#]} 14. Nf5 $1 {[%emt 0:02:36]} Qxd2 {[%emt 0:01:54]} ({But not} 14... Nc6 $2 15. Qe3 Qc7 16. Nxg7 (16. Nxe7+ $2 {perishes.} Nxe7 17. Qxe7 Qc6+ 18. e4 Rfe8 $19) 16... Kxg7 17. Bh6+ Kg8 18. Qc3 $18 (18. Bxf8 Rxf8 19. Rc1 Ne5 $18)) 15. Nxe7+ {[%emt 0:00:14]} Kh8 {[%emt 0:00:05]} 16. Rxd2 {[%emt 0:00:11]} ({Of course not} 16. Bxd2 Na6 $15) 16... Re8 {[%emt 0:07:12] [#]} (16... Na6 $11 {was preferrable.}) 17. Nd5 $1 $16 {[%emt 0:11:07] White is more active.} Na6 {[%emt 0:00:08] Dodges Nc7} 18. Rc1 {[%emt 0:01:05]} h6 {[%emt 0:19:23]} 19. Be7 {[%emt 0:07:45]} (19. Be3 $16) 19... Rac8 $11 {[%emt 0:05:36]} 20. a4 {[%emt 0:09:30]} Nc7 {[%emt 0:13:05]} 21. Rxc4 {[%emt 0:01:55] Black must now prevent Rdc2.} Nxd5 {[%emt 0:00:05]} 22. Rxc8 {[%emt 0:00:14]} Rxc8 {[%emt 0:00:13]} 23. Rxd5 {[%emt 0:00:10][%mdl 4096] Endgame. KRB-KRB} Rc2 {[%emt 0:06:07]} 24. e3 {[%emt 0:04:26]} Rxb2 {[%emt 0:00:48]} 25. Rd7 {[%emt 0:00:46]} a5 {[%emt 0:01:13] The position is equal.} 26. Bd8 {[%emt 0:01:31]} Kg8 {[%emt 0:00:13]} 27. Rb7 {[%emt 0:00:30]} Rb4 {[%emt 0:00:18]} 28. Rxb6 {[%emt 0:01:31]} Rxa4 {[%emt 0:00:03]} 29. Rb8 {[%emt 0:00:34]} Kh7 {[%emt 0:00:10]} 30. Rb7 {[%emt 0:03:43]} Kg8 {[%emt 0:00:05]} 31. Rb8 {Weighted Error Value: White=0.04 (flawless) /Black=0.05 (flawless) .  Mistake:       	White=1     	Black=1      OK:         	White=12    	Black=8      Best:        	White=1     	Black=6      Strong:       	White=1     	---        Brilliant:      	White=1     	---} 1/2-1/2